bitfinex/quotes_ETHUSD_20220201
["timestamp","ask_amount","ask_price","bid_price","bid_amount"]
[1643695922445,0.1834,2726.3,2725.5,0.39924287]
[1643695922711,1.26320233,2726.4,2725.5,0.39924287]
[1643695923115,1.26320233,2726.4,2725.5,0.69924287]
[1643695923614,1.54605941,2726.3,2725.5,0.69924287]
[1643695925718,0.84108439,2726.4,2725.5,2.63060042]
[1643695925919,0.84108439,2726.4,2725.6,0.1834]
[1643695926323,0.1834,2726.5,2725.6,0.1834]
[1643695926546,0.1834,2726.9,2725.6,0.1834]
[1643695927345,0.41986539,2726.6,2725.6,0.1834]
[1643695927548,0.88091539,2726.5,2725.6,0.1834]
[1643695928851,0.88091539,2726.5,2725.5,0.88264287]
[1643695929547,0.88091539,2726.5,2725.5,0.69924287]
[1643695929750,0.88091539,2726.5,2725.5,0.39924287]
[1643695929949,0.88091539,2726.5,2725.4,0.1834]
[1643695929950,0.90696796,2726.0,2725.4,0.1834]
[1643695930199,2.09574468,2725.9,2725.4,0.1834]
[1643695930394,0.90696796,2726.0,2725.2,0.1834]
[1643695930599,2.02572796,2725.9,2725.0,0.1834]
[1643695931600,0.32599849,2725.8,2725.0,0.57801837]
[1643695931801,2.0498587,2725.7,2725.0,0.87801837]
[1643695932001,2.17823878,2725.9,2725.0,0.87801837]
[1643695932700,2.03796445,2725.9,2725.0,0.87801837]
[1643695932899,0.83969256,2725.5,2725.0,0.87801837]
[1643695933960,2.53912587,2726.2,2725.0,0.57801837]
[1643695935355,2.53912587,2726.2,2725.0,0.39461837]
[1643695935356,0.83429117,2725.7,2725.0,0.39461837]
[1643695935556,0.83429117,2725.7,2724.8,0.1834]
[1643695935757,0.83429117,2725.7,2724.8,0.4834]
[1643695936258,0.83429117,2725.7,2724.9,0.10432845]
[1643695936465,0.83429117,2725.7,2724.8,0.1834]
[1643695936857,2.03376205,2725.6,2724.9,0.10432845]
[1643695937059,0.83429117,2725.7,2724.9,0.10432845]
[1643695937259,0.83429117,2725.7,2724.8,0.7998228]
[1643695939505,0.83429117,2725.7,2724.8,0.4834]
[1643695939801,0.01236232,2725.6,2724.8,0.1834]
[1643695940005,0.83429117,2725.7,2724.7,0.1834]
[1643695940206,0.83429117,2725.7,2724.9,0.10432845]
[1643695940603,0.83429117,2725.7,2725.0,0.34107115]
[1643695941203,0.1834,2725.8,2725.0,0.34107115]
[1643695941449,4.7772589,2726.3,2725.1,0.10432845]
[1643695941450,0.1834,2726.1,2725.1,0.10432845]
[1643695941649,0.1834,2726.2,2725.2,0.1834]
[1643695941847,2.0,2726.4,2725.2,0.36696]
[1643695941848,0.1834,2726.3,2725.2,0.36696]
[1643695942048,2.1334,2726.4,2725.3,0.10432845]
[1643695942248,0.81890537,2726.1,2725.5,0.43647225]
[1643695942646,0.81890537,2726.1,2725.5,0.73647225]
[1643695942647,1.092,2726.0,2725.5,0.73647225]
[1643695943049,1.092,2726.0,2725.5,0.43647225]
[1643695943253,1.092,2726.0,2725.5,0.3]
[1643695943451,1.092,2726.0,2725.4,0.1834]
[1643695944553,1.092,2726.0,2725.3,0.31612341]
[1643695944754,1.042,2726.0,2725.3,0.31612341]
[1643695945397,1.042,2725.9,2725.3,0.61612341]
[1643695945802,1.042,2725.9,2725.4,0.529]
[1643695945999,0.992,2725.9,2725.4,0.529]
[1643695946600,0.992,2725.9,2725.8,0.31780648]
[1643695947305,0.992,2725.9,2725.8,4.72959493]
[1643695947502,0.1334,2726.4,2725.8,6.26178845]
[1643695947705,0.1334,2726.4,2726.0,0.91679]
[1643695947905,0.1334,2726.4,2726.1,0.7124]
[1643695948106,0.1334,2726.4,2726.1,0.81672845]
[1643695948306,0.1334,2726.4,2726.2,1.02105845]
[1643695948516,0.1334,2726.4,2726.3,3.39349801]
[1643695948706,0.0834,2726.4,2726.3,0.54782646]
[1643695953896,0.0834,2726.4,2726.3,3.04782646]
[1643695954196,0.0334,2726.4,2726.3,3.04782646]
[1643695954995,0.0334,2726.4,2726.3,0.54782646]
[1643695955395,0.0334,2726.4,2726.3,1.07682646]
[1643695955595,0.0334,2726.4,2726.3,1.26038646]
[1643695955796,0.0334,2726.4,2726.3,1.44358646]
[1643695957750,0.0334,2726.4,2726.3,5.79358646]
[1643695959655,0.0334,2726.4,2726.3,5.61038646]
[1643695963103,0.0334,2726.4,2726.3,1.26038646]
[1643695964644,0.0334,2726.4,2726.3,4.99514963]
[1643695965447,2.0,2727.5,2726.6,0.91663]
[1643695965746,1.54565876,2727.4,2726.7,2.3622199]
[1643695965944,1.54565876,2727.3,2726.8,0.529]
[1643695966144,1.54565876,2727.2,2726.8,0.529]
[1643695966464,2.0,2727.7,2727.3,0.43084505]
[1643695966647,1.5455943,2727.6,2727.0,0.529]
[1643695966846,1.5455943,2727.5,2727.0,0.529]
[1643695967046,1.5455943,2727.4,2727.0,0.529]
[1643695967247,1.5455943,2727.3,2727.0,0.529]
[1643695967452,1.5455943,2727.2,2727.0,0.529]
[1643695967695,0.73853278,2727.3,2727.0,0.529]
[1643695967897,1.54566662,2727.2,2726.6,0.529]
[1643695968095,1.54566662,2727.2,2726.4,6.78517578]
[1643695968996,1.34566662,2727.2,2726.4,6.78517578]
[1643695969298,1.34566662,2727.2,2726.5,0.52638904]
[1643695969501,0.01205192,2726.7,2725.7,1.83371]
[1643695969701,2.85,2727.0,2725.5,2.75028]
[1643695969702,0.01214393,2726.5,2725.5,2.75028]
[1643695970099,0.01214393,2726.5,2725.3,1.2133]
[1643695970301,0.01214393,2726.5,2725.2,0.1]
[1643695970302,0.1834,2726.4,2725.2,0.1]
[1643695970498,0.95109599,2725.7,2725.2,0.1]
[1643695971857,2.51182017,2726.2,2725.2,0.1]
[1643695972863,0.69894272,2725.9,2725.2,0.1]
[1643695973363,0.19570034,2725.8,2725.2,0.1]
[1643695973561,0.20048363,2725.8,2725.2,0.1]
[1643695973759,1.49048363,2725.8,2725.2,0.1]
[1643695973963,2.82047479,2725.8,2725.2,0.1]
[1643695974158,2.82047479,2725.8,2725.2,0.0001]
[1643695974557,0.91755,2725.7,2725.2,0.0001]
[1643695974757,0.1834,2725.6,2725.2,0.0001]
[1643695976003,0.00478329,2725.8,2725.2,0.0001]
[1643695976203,1.165,2726.2,2725.2,0.0001]
[1643695976402,0.99,2726.0,2725.2,0.0001]
[1643695978008,0.08174,2725.9,2725.2,0.0001]
[1643695978408,0.08175,2726.0,2725.2,0.0001]
[1643695978811,0.84894417,2725.7,2725.2,0.0001]
[1643695979280,1.07175,2726.0,2725.2,0.0001]
[1643695980386,0.99,2725.8,2725.2,0.0001]
[1643695980584,2.67021918,2725.7,2725.2,0.0001]
[1643695980984,0.99,2725.6,2725.2,0.0001]
[1643695981185,2.26219788,2725.5,2725.2,0.0001]
[1643695981588,2.52412848,2725.7,2725.2,0.0001]
[1643695982927,0.0126767,2725.3,2725.2,0.0001]
[1643695983528,1.0026767,2725.3,2725.2,0.0001]
[1643695983727,4.04804223,2725.3,2725.2,0.0001]
[1643695983925,4.04804223,2725.3,2723.6,0.1834]
[1643695984128,0.99,2724.5,2723.4,0.1834]
[1643695984326,0.918,2724.4,2723.4,0.1834]
[1643695984539,0.918,2724.4,2723.0,0.1834]
[1643695984924,0.69877692,2724.1,2723.4,0.39746188]
[1643695985528,0.00382832,2724.4,2723.4,0.39746188]
[1643695985724,0.00382832,2724.4,2723.5,0.18356]
[1643695985929,0.00382832,2724.4,2723.6,0.7124]
[1643695986127,0.00382832,2724.4,2723.6,1.96760519]
[1643695986329,0.00382832,2724.4,2724.3,0.39231663]
[1643695986754,0.00382832,2724.4,2724.3,0.57571663]
[1643695987349,0.00382832,2724.4,2723.8,0.1834]
[1643695987752,0.00382832,2724.4,2723.6,0.1834]
[1643695987950,0.00382832,2724.4,2723.3,7.4465]
[1643695988154,0.00382832,2724.4,2723.3,4.79060112]
[1643695988452,0.71370145,2724.5,2723.8,0.31700961]
[1643695988654,0.01267155,2724.6,2723.8,0.31700961]
[1643695988855,3.89993931,2724.9,2723.8,0.31700961]
[1643695989454,0.91778,2724.7,2723.8,0.31700961]
[1643695989953,2.00033378,2724.9,2723.8,0.31700961]
[1643695990207,0.82863378,2724.9,2723.9,0.1834]
[1643695990834,0.82863378,2724.9,2724.3,0.34797115]
[1643695991018,23.48618011,2724.8,2723.9,0.1834]
[1643695991214,23.48618011,2724.8,2723.8,0.147012]
[1643695991215,0.08175,2724.7,2723.3,0.1834]
[1643695991813,0.08175,2724.7,2723.2,0.1834]
[1643695992010,0.86021738,2724.2,2723.5,0.35943166]
[1643695992209,0.86021738,2724.2,2723.6,0.1834]
[1643695992610,2.08157786,2724.3,2723.6,0.1834]
[1643695992815,2.08157786,2724.3,2723.5,0.35943166]
[1643695993014,2.5478521,2724.7,2723.5,0.35943166]
[1643695993218,23.89296259,2724.7,2723.5,0.35943166]
[1643695993420,0.9179086,2724.5,2723.5,0.35943166]
[1643695993617,0.67759974,2724.2,2723.5,0.35943166]
[1643695994044,0.75930974,2724.2,2723.5,0.35943166]
[1643695994443,0.67759974,2724.2,2723.5,0.35943166]
[1643695995044,0.67759974,2724.2,2723.5,0.147035]
[1643695995249,0.67759974,2724.2,2723.1,0.1834]
[1643695996053,0.67759974,2724.2,2723.3,0.91781]
[1643695996249,0.08175,2724.6,2723.9,0.36148152]
[1643695996650,0.08175,2724.6,2723.3,0.91781]
[1643695997448,0.67685654,2724.4,2723.3,0.91781]
[1643695997707,0.67685654,2724.4,2723.9,0.36043962]
[1643695997914,0.08175,2724.6,2723.9,0.36043962]
[1643695998109,2.17287991,2724.7,2723.9,0.36043962]
[1643695998910,2.17287991,2724.7,2723.9,0.31043962]
[1643695999109,0.84795937,2724.6,2723.9,0.31043962]
[1643695999922,0.08178,2724.7,2723.9,0.31043962]
[1643696000114,2.14120171,2724.7,2723.9,0.31043962]
[1643696000313,0.08175,2725.1,2723.9,0.31043962]
[1643696000314,2.75192994,2725.1,2723.9,0.31043962]
[1643696000512,1.54681095,2725.0,2723.9,0.31043962]
[1643696000714,2.4331146,2724.9,2723.9,0.31043962]
[1643696000917,3.4231146,2724.9,2723.9,0.31043962]
[1643696001113,0.6759343,2724.7,2723.9,0.31043962]
[1643696001317,2.21885075,2724.6,2723.9,0.31043962]
[1643696001767,2.21885075,2724.6,2723.9,0.26043962]
[1643696001961,0.08169,2724.6,2723.9,0.26043962]
[1643696002163,2.16948576,2724.6,2723.9,0.26043962]
[1643696002368,2.14444635,2724.6,2723.9,0.26043962]
[1643696003172,2.06275635,2724.6,2723.9,0.26043962]
[1643696003368,2.07411957,2724.6,2723.9,0.26043962]
[1643696003567,0.6759343,2724.7,2723.9,0.26043962]
[1643696003972,2.60682232,2725.0,2723.9,0.26043962]
[1643696004169,1.5468171,2724.9,2723.9,0.26043962]
[1643696004369,2.16348666,2724.8,2723.9,0.26043962]
[1643696004569,2.4662874,2725.1,2723.9,0.26043962]
[1643696004868,1.54682253,2725.0,2723.9,0.26043962]
[1643696005067,2.21753322,2724.9,2723.9,0.26043962]
[1643696005306,1.54682253,2724.8,2724.4,0.35212529]
[1643696005743,1.54682253,2724.8,2723.6,1.63013]
[1643696005903,1.54682253,2724.8,2723.6,0.1834]
[1643696005904,3.68123152,2724.8,2723.6,0.1834]
[1643696006104,2.13440899,2724.8,2723.6,0.1834]
[1643696006509,1.54683497,2724.7,2723.6,0.1834]
[1643696006705,2.26090148,2724.6,2723.5,10.5914]
[1643696006904,2.34454784,2724.8,2724.4,0.34505881]
[1643696007111,0.08146,2724.8,2724.4,0.34505881]
[1643696007309,1.54681317,2724.7,2724.4,0.34505881]
[1643696007508,1.54681317,2724.7,2723.5,10.5914]
[1643696008710,0.32909225,2724.5,2723.4,1.2396]
[1643696008955,3.54681317,2724.4,2723.3,0.1834]
[1643696009158,1.54681317,2724.3,2723.2,0.1834]
[1643696009655,1.54681317,2724.2,2723.2,0.1834]
[1643696009853,1.54681317,2724.1,2723.1,3.4283]
[1643696010060,2.08215,2724.3,2723.8,0.42664459]
[1643696010258,1.54705292,2724.2,2723.8,0.42664459]
[1643696010456,0.82971374,2724.0,2723.8,0.42664459]
[1643696010653,0.08272,2724.3,2723.8,0.42664459]
[1643696010855,1.54703381,2724.2,2723.8,0.42664459]
[1643696011054,1.54703381,2724.1,2723.8,0.42664459]
[1643696011355,2.60805816,2724.4,2723.1,3.4283]
[1643696011554,1.54707022,2724.3,2723.7,0.3337133]
[1643696011758,2.41169721,2724.2,2723.7,0.3337133]
[1643696011955,1.54707022,2724.1,2723.7,0.3337133]
[1643696012358,3.29526957,2724.4,2723.7,0.3337133]
[1643696012559,1.5470299,2724.3,2723.7,0.3337133]
[1643696012814,2.25084802,2724.2,2723.7,0.3337133]
[1643696013012,1.5470299,2724.1,2723.7,0.3337133]
[1643696013214,2.25043924,2724.0,2723.0,10.3312]
[1643696013414,1.5470299,2723.9,2723.0,10.3312]
[1643696013612,2.30543336,2723.8,2723.0,10.3312]
[1643696013816,0.01267843,2723.1,2721.9,0.00860639]
[1643696014017,0.01232412,2722.5,2721.9,0.00860639]
[1643696014419,0.19592412,2722.5,2722.3,0.35834122]
[1643696014615,0.01232412,2722.5,2722.3,0.30834122]
[1643696014813,0.01232412,2722.5,2721.9,0.007]
[1643696015816,0.18357,2722.6,2721.9,0.007]
[1643696016016,0.18357,2722.6,2722.2,0.41622071]
[1643696017456,0.18357,2722.6,2721.9,0.007]
[1643696017854,2.3941278,2722.6,2721.9,0.007]
[1643696018460,0.01202009,2722.4,2721.9,0.007]
[1643696018657,0.01825766,2722.4,2721.9,0.007]
[1643696018859,0.01825766,2722.4,2721.9,0.32438868]
[1643696019357,0.01825766,2722.4,2721.9,0.007]
[1643696019358,1.54800862,2722.3,2721.9,0.007]
[1643696019562,1.54800862,2722.3,2720.8,0.00160639]
[1643696019563,7.11636553,2722.1,2720.8,0.00160639]
[1643696019759,1.74454989,2722.0,2720.4,0.00160639]
[1643696020058,3.79109752,2721.9,2721.2,0.0001]
[1643696020312,2.26105438,2721.8,2721.2,0.330764]
[1643696020523,0.69627724,2721.6,2721.2,0.330764]
[1643696021117,21.70727,2721.7,2721.2,0.330764]
[1643696021317,21.52357,2721.7,2721.2,0.330764]
[1643696021821,0.01259754,2722.0,2721.3,0.1837]
[1643696022714,0.01259754,2722.0,2721.9,0.38404314]
[1643696022924,0.01259754,2722.0,2721.3,0.1837]
[1643696023323,0.18357,2722.3,2721.3,0.1837]
[1643696023952,0.18357,2722.3,2721.7,0.39156642]
[1643696024957,21.52357,2722.3,2721.7,0.39156642]
[1643696025157,2.134069,2722.2,2721.7,0.39156642]
[1643696025357,0.18357,2722.1,2721.2,0.0001]
[1643696025561,0.01226594,2721.9,2721.2,0.0001]
[1643696025759,0.1837,2721.8,2721.2,0.0001]
[1643696025960,0.36727,2721.8,2721.2,0.0001]
[1643696026359,21.35226594,2721.9,2721.6,0.31820742]
[1643696026657,0.01226594,2721.9,2721.3,0.1837]
[1643696027062,0.99,2721.5,2720.2,0.00160639]
[1643696027270,3.45,2721.3,2719.4,7.07275989]
[1643696027463,0.01230741,2720.7,2719.5,0.1837]
[1643696027749,0.01230741,2720.7,2720.4,0.31577542]
[1643696028148,22.08864887,2720.7,2719.5,0.1837]
[1643696029149,21.35230741,2720.7,2719.5,0.1837]
[1643696029350,2.19325096,2720.6,2719.5,0.1337536]
[1643696029553,23.53325096,2720.6,2719.5,0.1337536]
[1643696030153,21.34,2720.4,2720.0,0.37260418]
[1643696030656,21.35656709,2720.7,2720.0,0.37260418]
[1643696030854,0.01656709,2720.7,2720.0,0.37260418]
[1643696031057,0.00425968,2720.7,2720.0,0.37260418]
[1643696031657,0.00425968,2720.7,2719.6,1.0127]
[1643696031855,0.00425968,2720.7,2719.6,2.0127]
[1643696032177,0.00425968,2720.7,2719.7,0.18361]
[1643696032357,0.00425968,2720.7,2719.8,0.1837]
[1643696032560,2.72685817,2721.5,2719.8,0.1837]
[1643696032759,2.13798084,2721.5,2719.9,3.826]
[1643696032958,2.13798084,2721.5,2720.0,0.1837]
[1643696033163,2.32168084,2721.5,2720.0,0.1837]
[1643696033459,2.32168084,2721.5,2720.0,0.1337]
[1643696033659,2.32168084,2721.5,2721.1,0.38350942]
[1643696033861,0.1837,2721.5,2720.5,0.1837]
[1643696034060,0.1837,2721.5,2720.2,0.1837]
[1643696034268,2.27141153,2721.5,2720.2,0.1837]
[1643696034760,0.1837,2721.5,2720.2,0.1837]
[1643696034960,0.51239043,2721.5,2720.6,0.39628065]
[1643696035408,0.01412762,2721.4,2720.2,0.1837]
[1643696035609,2.17984693,2721.4,2720.2,0.1837]
[1643696036008,0.18357,2721.3,2720.2,0.1837]
[1643696036208,0.36727,2721.3,2720.2,0.1837]
[1643696036407,2.37303612,2721.2,2720.2,0.1837]
[1643696036608,0.1837,2721.1,2720.2,0.44636805]
[1643696037009,0.1837,2721.2,2720.2,0.44636805]
[1643696037410,2.41993624,2721.2,2720.2,0.44636805]
[1643696038510,0.68637983,2721.0,2720.2,0.44636805]
[1643696039659,2.41993624,2721.2,2720.2,0.44636805]
[1643696039856,0.1837,2721.2,2720.2,0.44636805]
[1643696040059,0.01412762,2721.4,2720.3,0.1837]
[1643696040257,2.46994627,2721.6,2720.7,0.39333048]
[1643696040460,2.47351653,2721.6,2720.7,0.39333048]
[1643696040654,0.84190326,2721.4,2720.7,0.39333048]
[1643696041456,0.36727,2721.6,2720.7,0.39333048]
[1643696041668,0.1837,2721.6,2720.7,0.34333048]
[1643696041857,0.1837,2721.8,2720.7,0.34333048]
[1643696044212,0.1837,2721.8,2721.2,0.36177192]
[1643696044610,0.1837,2721.8,2720.6,0.1837]
[1643696045520,0.18357,2721.7,2720.6,0.1837]
[1643696045722,0.6328416,2721.6,2720.5,1.2131]
[1643696045918,3.10963494,2721.5,2720.1,0.1837]
[1643696046120,0.1837,2721.4,2720.1,0.1837]
[1643696046562,21.34,2721.3,2720.1,0.1837]
[1643696047062,0.82246113,2721.2,2720.1,0.1837]
[1643696047867,2.22827776,2721.1,2720.1,0.1837]
[1643696048071,0.1837,2721.0,2720.0,6.53]
[1643696048269,0.36727,2721.1,2720.0,6.7137]
[1643696048485,0.36727,2721.1,2720.3,0.38998248]
[1643696049067,0.1837,2721.1,2720.3,0.38998248]
[1643696049266,0.1837,2721.1,2720.8,0.35849338]
[1643696049466,2.22840776,2721.4,2720.0,6.7137]
[1643696049672,21.34,2721.3,2720.0,6.7137]
[1643696049867,0.36727,2721.2,2720.0,6.7137]
[1643696050113,2.22840776,2721.4,2720.0,6.7137]
[1643696050526,2.22840776,2721.4,2720.6,0.37935482]
[1643696050726,0.67873861,2721.1,2720.6,0.37935482]
[1643696051528,0.67873861,2721.1,2720.0,6.7137]
[1643696052330,0.86230861,2721.1,2720.0,6.7137]
[1643696052531,0.1837,2721.0,2720.4,0.35688623]
[1643696054276,0.1837,2721.3,2720.4,0.35688623]
[1643696054476,0.1837,2721.5,2720.4,0.35688623]
[1643696054677,1.59077,2721.8,2720.5,0.1837]
[1643696054875,1.54846337,2721.7,2720.5,0.1837]
[1643696055080,1.54846337,2721.7,2720.6,0.71362719]
[1643696055275,1.54846337,2721.7,2720.5,0.1837]
[1643696055276,1.54846337,2721.7,2721.1,0.37636367]
[1643696055873,1.54846337,2721.7,2720.5,1.3908]
[1643696056774,1.54846337,2721.7,2720.7,0.80192208]
[1643696056977,1.54846337,2721.7,2720.8,0.1837]
[1643696057174,0.46009994,2722.0,2720.8,0.1837]
[1643696057175,1.54846337,2721.6,2720.8,0.1837]
[1643696057577,1.54846337,2721.5,2720.8,0.1837]
[1643696057823,0.46009994,2722.0,2720.8,0.1837]
[1643696058016,1.54836047,2721.9,2721.2,0.36809948]
[1643696059122,1.54836047,2721.9,2721.2,0.89709948]
[1643696059318,0.68196955,2722.4,2721.8,0.44808391]
[1643696059519,1.54821574,2722.3,2721.7,0.43117251]
[1643696059820,1.54821574,2722.2,2721.7,0.43117251]
[1643696060019,0.87828883,2722.5,2721.7,0.43117251]
[1643696060020,1.54821574,2722.1,2721.7,0.43117251]
[1643696060223,0.1836,2722.7,2721.7,0.43117251]
[1643696060419,0.68196955,2722.8,2721.4,0.18361]
[1643696060420,1.54801865,2722.6,2721.8,0.529]
[1643696060719,2.0389794,2722.9,2721.9,0.7126]
[1643696060720,1.54801865,2722.5,2721.9,0.7126]
[1643696060921,1.54801865,2722.4,2721.9,0.529]
[1643696061125,1.54801865,2722.3,2721.9,0.529]
[1643696061325,1.54801865,2722.2,2721.9,0.529]
[1643696061569,0.40758919,2722.7,2721.9,0.529]
[1643696061768,1.54796617,2722.6,2721.9,0.529]
[1643696062665,1.54796617,2722.5,2721.9,0.529]
[1643696062888,1.54796617,2722.4,2721.9,0.529]
[1643696063067,1.54796617,2722.3,2721.9,0.529]
[1643696063268,1.54796617,2722.2,2721.9,0.529]
[1643696063467,1.54796617,2722.6,2721.9,0.529]
[1643696063869,0.86556955,2722.9,2721.9,0.529]
[1643696063870,1.54796617,2722.5,2721.9,0.529]
[1643696064067,1.54796617,2722.4,2721.9,0.529]
[1643696064273,1.54796617,2722.3,2721.9,0.529]
[1643696064468,1.54796617,2722.2,2721.9,0.529]
[1643696064768,0.6712729,2722.8,2721.9,0.529]
[1643696064999,1.54798338,2722.7,2721.9,0.529]
[1643696065618,1.54798338,2722.6,2721.9,0.529]
[1643696065818,1.54798338,2722.5,2721.9,0.529]
[1643696066035,0.1836,2722.9,2721.9,0.529]
[1643696066036,1.54798338,2722.4,2721.9,0.529]
[1643696066222,0.1836,2722.9,2721.9,0.529]
[1643696066418,1.54794974,2722.8,2721.9,0.529]
[1643696066821,2.45108571,2722.7,2721.8,0.1836]
[1643696067021,1.73151974,2722.6,2721.8,0.1836]
[1643696067321,3.94368758,2722.5,2721.8,0.1836]
[1643696067525,1.54794974,2722.4,2721.8,0.1836]
[1643696067722,0.62330755,2722.3,2721.5,1.1526]
[1643696067924,1.54794974,2722.2,2721.5,1.1526]
[1643696068131,1.54794974,2722.2,2721.3,4.32175274]
[1643696068323,0.1836,2722.5,2721.4,0.529]
[1643696068522,0.1836,2722.5,2721.4,0.56618497]
[1643696068523,1.54807773,2722.4,2721.4,0.56618497]
[1643696068730,0.1836,2722.3,2721.4,0.56618497]
[1643696068990,1.54807773,2722.2,2721.4,0.56618497]
[1643696069364,0.1836,2722.5,2721.4,0.529]
[1643696069766,1.54810509,2722.4,2721.4,0.529]
[1643696069966,0.1836,2722.3,2721.4,0.529]
[1643696070212,1.54810509,2722.2,2721.4,0.529]
[1643696070369,1.54810509,2722.2,2721.4,0.5678696]
[1643696070570,1.54810509,2722.1,2721.4,0.5678696]
[1643696070769,0.1836,2722.7,2721.5,0.1836]
[1643696070971,1.54806735,2722.6,2721.6,0.529]
[1643696071170,0.84704314,2722.9,2721.7,0.1836]
[1643696071171,1.54806735,2722.5,2721.7,0.1836]
[1643696071375,1.54806735,2722.4,2722.0,0.35021095]
[1643696071668,0.84704314,2722.9,2721.6,1.6202]
[1643696071873,1.54799965,2722.8,2721.8,0.1836]
[1643696072070,1.54799965,2722.8,2721.7,0.1836]
[1643696072919,1.54799965,2722.8,2722.0,0.3456499]
[1643696073923,1.54799965,2722.7,2722.0,0.3456499]
[1643696074123,0.36717,2723.0,2722.0,0.3456499]
[1643696074124,1.54799965,2722.6,2722.0,0.3456499]
[1643696074320,1.54799965,2722.5,2722.0,0.3456499]
[1643696074520,1.54799965,2722.4,2722.0,0.3456499]
[1643696074721,2.5661423,2723.0,2722.0,0.3456499]
[1643696074920,1.54798293,2722.9,2722.0,0.3456499]
[1643696075522,1.54798293,2722.9,2722.0,1.19822116]
[1643696076321,1.54798293,2722.8,2722.0,1.19822116]
[1643696076569,0.86556955,2723.1,2722.0,1.19822116]
[1643696076570,1.54798293,2722.7,2722.0,1.19822116]
[1643696076765,1.54798293,2722.6,2722.0,1.19822116]
[1643696077068,1.54798293,2722.5,2722.0,1.19822116]
[1643696077266,0.1836,2723.1,2722.0,1.19822116]
[1643696077470,2.41349991,2723.1,2722.0,1.19822116]
[1643696077671,1.54793036,2723.0,2722.0,0.3456499]
[1643696079275,1.54793036,2723.0,2722.0,1.17321143]
[1643696079977,1.54793036,2723.0,2722.5,0.43752105]
[1643696080216,1.54793036,2723.0,2722.1,0.529]
[1643696080417,1.54793036,2722.9,2722.1,0.529]
[1643696080615,1.54793036,2722.8,2722.1,0.529]
[1643696080811,0.13819997,2723.2,2722.1,0.529]
[1643696081011,1.54782197,2723.1,2722.1,0.529]
[1643696081212,2.34179825,2723.1,2722.3,0.41373227]
[1643696081415,1.54782197,2723.0,2722.3,0.94273227]
[1643696082112,1.54782197,2722.9,2722.3,0.94273227]
[1643696082312,1.54782197,2722.8,2722.3,0.94273227]
[1643696082515,0.13819997,2723.2,2722.3,0.94273227]
[1643696082715,1.54779629,2723.1,2722.3,0.94273227]
[1643696084769,1.54779629,2723.1,2722.3,0.529]
[1643696086470,1.73139629,2723.1,2722.3,0.529]
[1643696086673,1.54779629,2723.0,2722.3,0.529]
[1643696088716,1.54779629,2723.0,2722.7,0.38349504]
[1643696088916,1.54779629,2723.0,2722.3,0.529]
[1643696089716,1.54779629,2723.0,2722.4,0.91804]
[1643696089918,0.1836,2723.5,2722.5,1.2634169]
[1643696090137,1.54772023,2723.4,2722.5,1.2634169]
[1643696090915,1.49772023,2723.4,2722.7,0.40925616]
[1643696091116,1.49772023,2723.4,2722.5,1.2634169]
[1643696091316,1.49772023,2723.4,2722.6,0.03844448]
[1643696091564,1.49772023,2723.4,2722.6,0.56744448]
[1643696092170,1.49772023,2723.4,2722.6,0.529]
[1643696096726,1.49772023,2723.4,2722.6,1.44699]
[1643696097227,1.49772023,2723.4,2722.7,0.91797]
[1643696097424,1.49772023,2723.4,2722.8,0.529]
[1643696097624,0.1836,2723.7,2722.8,0.529]
[1643696098642,0.01202024,2723.4,2722.3,0.1836]
[1643696098831,0.1836,2723.3,2722.1,1.323]
[1643696099268,0.1836,2723.3,2722.1,1.623]
[1643696099480,0.86556955,2723.3,2722.1,1.623]
[1643696099666,0.1836,2723.3,2722.1,1.623]
[1643696099928,0.1836,2723.3,2722.3,0.40807006]
[1643696099929,0.53573788,2723.3,2722.3,0.40807006]
[1643696100072,0.53573788,2723.3,2722.1,1.623]
[1643696100483,2.75248212,2723.3,2722.1,0.1836]
[1643696100871,2.75248212,2723.3,2721.9,4.8486]
[1643696100872,3.43445167,2723.3,2721.9,4.8486]
[1643696101171,0.68196955,2723.2,2722.0,0.41448861]
[1643696101372,0.80692553,2722.7,2722.0,0.41448861]
[1643696101570,2.20082109,2723.1,2722.0,0.41448861]
[1643696101571,5.50462109,2723.1,2722.0,0.41448861]
[1643696102574,0.80959812,2722.7,2722.0,0.41448861]
[1643696103220,8.50922318,2723.1,2722.0,0.41448861]
[1643696103423,0.01273785,2722.6,2722.0,0.41448861]
[1643696103919,2.51851868,2722.9,2722.0,0.41448861]
[1643696104325,0.68196955,2723.1,2722.1,0.1836]
[1643696104520,0.6949644,2723.2,2722.1,0.1836]
[1643696104725,1.83103898,2723.9,2722.1,0.1836]
[1643696104726,0.64896955,2723.5,2722.1,0.7705526]
[1643696104925,0.90975501,2723.8,2722.2,4.9186426]
[1643696104926,2.0411524,2723.7,2722.2,4.9186426]
[1643696105121,2.2247524,2723.7,2722.2,4.9186426]
[1643696105322,0.68958506,2723.5,2722.9,0.32399164]
[1643696105522,0.68958506,2723.5,2723.0,0.33258096]
[1643696105721,0.68958506,2723.5,2722.3,5.2841]
[1643696105930,0.68958506,2723.5,2722.4,0.91809]
[1643696106248,0.68958506,2723.5,2722.4,1.0214326]
[1643696106862,0.68958506,2723.5,2722.6,0.42180933]
[1643696107868,0.1836,2723.7,2722.6,0.42180933]
[1643696108872,0.1836,2723.7,2722.6,0.72180933]
[1643696109071,0.82208922,2723.8,2722.7,0.1836]
[1643696109271,0.82208922,2723.8,2723.2,0.86357552]
[1643696110314,0.1836,2723.9,2723.2,0.86357552]
[1643696110315,0.1836,2723.9,2723.2,1.18937774]
[1643696110817,0.1834,2724.0,2723.2,1.18937774]
[1643696111015,1.54753612,2723.9,2723.2,1.18937774]
[1643696111820,1.54753612,2723.9,2723.2,1.48937774]
[1643696112018,1.54753612,2723.8,2723.2,1.48937774]
[1643696112318,2.32263254,2724.1,2723.2,1.48937774]
[1643696112319,1.54753612,2723.7,2723.2,1.48937774]
[1643696112520,1.54753612,2723.6,2723.2,1.48937774]
[1643696112724,1.54753612,2723.5,2723.2,1.48937774]
[1643696112923,1.54753612,2723.4,2723.2,1.48937774]
[1643696113126,5.07768292,2724.2,2723.2,1.48937774]
[1643696113324,1.54740379,2724.1,2723.2,1.48937774]
[1643696113528,3.58160773,2724.1,2723.2,1.16357552]
[1643696113777,0.87566587,2723.9,2723.2,1.16357552]
[1643696113963,1.54740379,2723.8,2723.2,0.86357552]